fUST/lending_fUST_20250827
["ID","MTS","AMOUNT","RATE_DAILY","PERIOD"]
[381609497,1756295513351,-480.0,0.00024109,2]
[381609498,1756295513361,-480.0,0.00024109,2]
[381609499,1756295513370,-480.0,0.00024109,2]
[381609500,1756295513379,-1717.2,0.00024109,2]
[381609501,1756295513390,-480.0,0.00024109,2]
[381609502,1756295513399,-480.0,0.00024109,2]
[381609503,1756295513409,-2626.17,0.00024109,2]
[381609504,1756295513418,-932.54,0.00024109,2]
[381609505,1756295513427,-484.63,0.00024109,2]
[381609506,1756295513436,-717.77,0.00024109,2]
[381609507,1756295513447,-1227.94,0.00024109,2]
[381609508,1756295513457,-607.71,0.00024109,2]
[381609509,1756295513466,-480.0,0.00024109,2]
[381609510,1756295513475,-5360.08,0.00024109,2]
[381609511,1756295513484,-636.41,0.00024109,2]
[381609512,1756295513495,-480.0,0.00024109,2]
[381609513,1756295513504,-7837.73,0.00024109,2]
[381609514,1756295513513,-525.03,0.00024109,2]
[381609515,1756295513523,-784.27,0.00024109,2]
[381609516,1756295513534,-974.32,0.00024109,2]
[381609517,1756295513544,-480.0,0.00024109,2]
[381609518,1756295513554,-480.0,0.00024109,2]
[381609519,1756295513692,-480.0,0.00024109,2]
[381609520,1756295513702,-2604.37,0.00024109,2]
[381609521,1756295513713,-480.0,0.00024109,2]
[381609522,1756295513726,-480.0,0.00024109,2]
[381609523,1756295513736,-480.0,0.00024109,2]
[381609524,1756295513747,-486.44,0.00024109,2]
[381609525,1756295513756,-480.0,0.00024109,2]
[381609526,1756295513766,-1424.05,0.00024109,2]
[381609527,1756295513775,-480.0,0.00024109,2]
[381609528,1756295513785,-480.0,0.00024109,2]
[381609529,1756295513794,-850.03,0.00024109,2]
[381609530,1756295513804,-480.0,0.00024109,2]
[381609531,1756295513814,-480.0,0.00024109,2]
[381609532,1756295513824,-480.0,0.00024109,2]
[381609533,1756295513835,-480.0,0.00024109,2]
[381609534,1756295513845,-512.47,0.00024109,2]
[381609535,1756295513859,-480.0,0.00024109,2]
[381609536,1756295513870,-1080.79,0.00024109,2]
[381609537,1756295513879,-2434.53,0.00024109,2]
[381609538,1756295513890,-753.46,0.00024109,2]
[381609539,1756295513901,-527.3,0.00024109,2]
[381609540,1756295513910,-480.0,0.00024109,2]
[381609541,1756295513919,-1150.08,0.00024109,2]
[381609542,1756295513930,-480.0,0.00024109,2]
[381609543,1756295513941,-480.0,0.00024109,2]
[381609544,1756295513951,-480.0,0.00024109,2]
[381609545,1756295513960,-716.6,0.00024109,2]
[381609546,1756295513970,-480.0,0.00024109,2]
[381609547,1756295513979,-480.0,0.00024109,2]
[381609548,1756295513989,-480.0,0.00024109,2]
[381609549,1756295513999,-480.0,0.00024109,2]
[381609550,1756295514010,-799.46,0.00024109,2]
[381609551,1756295514020,-528.16,0.00024109,2]
[381609552,1756295514030,-5059.84,0.00024109,2]
[381609553,1756295514042,-480.0,0.00024109,2]
[381609554,1756295514052,-518.25,0.00024109,2]
[381609555,1756295514062,-582.84,0.00024109,2]
[381609556,1756295514071,-556.45,0.00024109,2]
[381609557,1756295514081,-1272.66,0.00024109,2]
[381609558,1756295514091,-684.68,0.00024109,2]
[381609559,1756295514100,-480.0,0.00024109,2]
[381609560,1756295514110,-480.0,0.00024109,2]
[381609561,1756295514119,-3500.0,0.0002416,2]
[381609562,1756295514129,-304.27150365,0.00024164,2]
[381609563,1756295514138,-2500.0,0.00024164,2]
[381609564,1756295514149,-973.0,0.00024362,2]
[381609565,1756295514160,-2500.0,0.00024364,2]
[381609566,1756295514169,-2378.23275205,0.00024364,2]
[381609567,1756295514178,-550.0,0.00024364,2]
[381609568,1756295514187,-728.82,0.00024383,2]
[381609569,1756295514196,-1786.79,0.00024383,2]
[381609570,1756295514205,-480.0,0.00024383,2]
[381609571,1756295514214,-480.0,0.00024383,2]
[381609572,1756295514225,-2132.63,0.00024383,2]
[381609573,1756295514234,-567.43,0.00024383,2]
[381609574,1756295514244,-480.0,0.00024383,2]
[381609575,1756295514253,-480.0,0.00024383,2]
[381609576,1756295514262,-480.0,0.00024383,2]
[381609577,1756295514272,-480.0,0.00024383,2]
[381609578,1756295514281,-599.6,0.00024383,2]
[381609579,1756295514290,-480.0,0.00024383,2]
[381609580,1756295514300,-480.0,0.00024383,2]
[381609581,1756295514309,-555.01,0.00024383,2]
[381609582,1756295514318,-480.0,0.00024383,2]
[381609583,1756295514327,-480.0,0.00024383,2]
[381609584,1756295514338,-480.0,0.00024383,2]
[381609585,1756295514347,-608.26,0.00024383,2]
[381609586,1756295514356,-480.0,0.00024383,2]
[381609587,1756295514366,-788.63,0.00024383,2]
[381609588,1756295514375,-733.12,0.00024383,2]
[381609589,1756295514384,-491.85,0.00024383,2]
[381609590,1756295514393,-523.6,0.00024383,2]
[381609591,1756295514402,-4246.52,0.00024383,2]
[381609592,1756295514411,-598.52,0.00024383,2]
[381609593,1756295514421,-972.86,0.00024383,2]
[381609594,1756295514430,-568.62,0.00024383,2]
[381609595,1756295514439,-480.0,0.00024383,2]
[381609596,1756295514448,-480.0,0.00024383,2]
[381609597,1756295514458,-480.0,0.00024383,2]
[381609598,1756295514467,-573.08,0.00024383,2]
[381609599,1756295514476,-543.52,0.00024383,2]
[381609600,1756295514486,-506.41,0.00024383,2]
[381609601,1756295514495,-556.45,0.00024383,2]
[381609602,1756295514505,-480.0,0.00024383,2]
[381609603,1756295514515,-480.0,0.00024383,2]
[381609604,1756295514524,-480.0,0.00024383,2]
[381609605,1756295514534,-480.0,0.00024383,2]
[381609606,1756295514543,-480.0,0.00024383,2]
[381609607,1756295514553,-743.34,0.00024383,2]
[381609608,1756295514562,-614.77,0.00024383,2]
[381609609,1756295514572,-480.0,0.00024383,2]
[381609610,1756295514581,-480.0,0.00024383,2]
[381609611,1756295514590,-480.0,0.00024383,2]
[381609612,1756295514599,-480.0,0.00024383,2]
[381609613,1756295514609,-1174.5,0.00024383,2]
[381609614,1756295514619,-480.0,0.00024383,2]
[381609615,1756295514628,-480.0,0.00024383,2]
[381609616,1756295514637,-480.0,0.00024383,2]
[381609617,1756295514647,-480.0,0.00024383,2]
[381609618,1756295514656,-480.0,0.00024383,2]
[381609619,1756295514665,-480.0,0.00024383,2]
[381609620,1756295514675,-824.65,0.00024383,2]
[381609621,1756295514685,-480.0,0.00024383,2]
[381609622,1756295514694,-897.27,0.00024383,2]
[381609623,1756295514704,-771.07,0.00024383,2]
[381609624,1756295514714,-480.0,0.00024383,2]
[381609625,1756295514723,-537.77230222,0.00024383,2]
[381609626,1756295514733,-480.0,0.00024383,2]
[381609627,1756295514743,-504.69,0.00024383,2]
[381609628,1756295514754,-1094.25,0.00024383,2]
[381609629,1756295514763,-480.0,0.00024383,2]
[381609630,1756295514773,-480.0,0.00024383,2]
[381609631,1756295514783,-480.0,0.00024383,2]
[381609632,1756295514793,-480.0,0.00024383,2]
[381609633,1756295514802,-1176.51,0.00024383,2]
[381609634,1756295514812,-833.03,0.00024383,2]
[381609635,1756295514822,-480.0,0.00024383,2]
[381609636,1756295514832,-483.29,0.00024383,2]
[381609637,1756295514842,-480.0,0.00024383,2]
[381609638,1756295514853,-650.46,0.00024383,2]
[381609639,1756295514865,-536.02,0.00024383,2]
[381609640,1756295514874,-480.0,0.00024383,2]
[381609641,1756295514883,-2316.32,0.00024383,2]
[381609642,1756295514893,-480.0,0.00024383,2]
[381609643,1756295514902,-633.07,0.00024383,2]
[381609644,1756295514912,-480.0,0.00024383,2]
[381609645,1756295514921,-480.0,0.00024383,2]
[381609646,1756295514932,-480.0,0.00024383,2]
[381609647,1756295514942,-480.0,0.00024383,2]
[381609648,1756295514952,-692.43,0.00024383,2]
[381609649,1756295514963,-617.59,0.00024383,2]
[381609650,1756295514972,-480.0,0.00024383,2]
[381609651,1756295514981,-518.17,0.00024383,2]
[381609652,1756295514990,-604.0,0.00024383,2]
[381609653,1756295515000,-500.09,0.00024383,2]
[381609654,1756295515012,-480.0,0.00024383,2]
[381609655,1756295515023,-480.0,0.00024383,2]
[381609656,1756295515034,-480.0,0.00024383,2]
[381609657,1756295515043,-329.76,0.00024383,2]
[381609658,1756295515056,-480.0,0.00024383,2]
[381609659,1756295515065,-480.0,0.00024383,2]
[381609660,1756295515074,-603.45,0.00024383,2]
[381609661,1756295515083,-480.0,0.00024383,2]
[381609662,1756295515092,-480.0,0.00024383,2]
[381609663,1756295515102,-525.14,0.00024383,2]
[381609664,1756295515111,-480.0,0.00024383,2]
[381609665,1756295515120,-546.45,0.00024383,2]
[381609666,1756295515129,-480.0,0.00024383,2]
[381609667,1756295515139,-480.0,0.00024383,2]
[381609668,1756295515148,-495.46,0.00024383,2]
[381609669,1756295515159,-494.23,0.00024383,2]
[381609670,1756295515169,-480.0,0.00024383,2]
[381609671,1756295515179,-752.07,0.00024383,2]
[381609672,1756295515188,-472.15890561,0.00024383,2]
[381609673,1756295515198,-522.4,0.00024383,2]
[381609674,1756295515209,-480.0,0.00024383,2]
[381609675,1756295515218,-480.0,0.00024383,2]
[381609676,1756295515227,-1143.26,0.00024383,2]
[381609677,1756295515238,-698.99,0.00024383,2]
[381609678,1756295515248,-606.55,0.00024383,2]
[381609679,1756295515258,-755.57,0.00024383,2]
[381609680,1756295515267,-740.17,0.00024383,2]
[381609681,1756295515277,-480.0,0.00024383,2]
[381609682,1756295515287,-839.06,0.00024383,2]
[381609683,1756295515298,-558.04,0.00024383,2]
[381609684,1756295515307,-480.0,0.00024383,2]
[381609685,1756295515318,-480.0,0.00024383,2]
[381609686,1756295515328,-576.43,0.00024383,2]
[381609687,1756295515338,-480.0,0.00024383,2]
[381609688,1756295515348,-527.26,0.00024383,2]
[381609689,1756295515358,-564.31,0.00024383,2]
[381609690,1756295515368,-525.48,0.00024383,2]
[381609691,1756295515377,-480.0,0.00024383,2]
[381609692,1756295515386,-480.0,0.00024383,2]
[381609693,1756295515396,-706.22,0.00024383,2]
[381609694,1756295515407,-480.0,0.00024383,2]
[381609695,1756295515416,-480.0,0.00024383,2]
[381609696,1756295515426,-550.82,0.00024383,2]
[381609697,1756295515435,-926.56,0.00024383,2]
[381609698,1756295515444,-924.56,0.00024383,2]
[381609699,1756295515453,-480.0,0.00024383,2]
[381609700,1756295515464,-480.0,0.00024383,2]
[381609701,1756295515473,-625.16,0.00024383,2]
[381609702,1756295515482,-556.30947151,0.00024383,2]
[381609703,1756295515491,-480.0,0.00024383,2]
[381609704,1756295515707,-480.0,0.00024383,2]
[381609705,1756295515717,-480.0,0.00024383,2]
[381609706,1756295515727,-613.93,0.00024383,2]
[381609707,1756295515736,-480.0,0.00024383,2]
[381609708,1756295515746,-480.0,0.00024383,2]
[381609709,1756295515756,-732.55,0.00024383,2]
[381609710,1756295515765,-480.0,0.00024383,2]
[381609711,1756295515775,-480.0,0.00024383,2]
[381609712,1756295515784,-480.0,0.00024383,2]
[381609713,1756295515794,-480.0,0.00024383,2]
[381609714,1756295515803,-502.03,0.00024383,2]
[381609715,1756295515813,-513.59,0.00024383,2]
[381609716,1756295515822,-9670.89,0.00024383,2]
[381609717,1756295515836,-524.29,0.00024383,2]
[381609718,1756295515846,-480.0,0.00024383,2]
[381609719,1756295515859,-1383.3,0.00024383,2]
[381609720,1756295515868,-517.62575814,0.00024383,2]
[381609721,1756295515877,-655.08,0.00024383,2]
[381609722,1756295515886,-472.96494847,0.00024383,2]
[381609723,1756295515896,-480.0,0.00024383,2]
[381609724,1756295515906,-480.0,0.00024383,2]
[381609725,1756295515915,-480.0,0.00024383,2]
[381609726,1756295515924,-480.0,0.00024383,2]
[381609727,1756295515935,-665.82,0.00024383,2]
[381609728,1756295515945,-480.0,0.00024383,2]
[381609729,1756295515955,-480.0,0.00024383,2]
[381609730,1756295515964,-480.0,0.00024383,2]
[381609731,1756295515973,-480.0,0.00024383,2]
[381609732,1756295515983,-480.0,0.00024383,2]
[381609733,1756295515992,-737.63,0.00024383,2]
[381609734,1756295516004,-480.0,0.00024383,2]
[381609735,1756295516013,-1275.55,0.00024383,2]
[381609736,1756295516023,-941.67,0.00024383,2]
[381609737,1756295516033,-480.0,0.00024383,2]
[381609738,1756295516166,-527.84,0.00024383,2]
[381609739,1756295516175,-480.0,0.00024383,2]
[381609740,1756295516185,-1377.54,0.00024383,2]
[381609741,1756295516194,-480.0,0.00024383,2]
[381609742,1756295516204,-544.18,0.00024383,2]
[381609743,1756295516214,-2005.67,0.00024383,2]
[381609744,1756295516224,-605.81,0.00024383,2]
[381609745,1756295516234,-480.0,0.00024383,2]
[381609746,1756295516244,-486.23,0.00024383,2]
[381609747,1756295516255,-480.0,0.00024383,2]
[381609748,1756295516264,-375.54653901,0.00024383,2]
[381609749,1756295516274,-480.0,0.00024383,2]
[381609750,1756295516284,-572.5,0.00024383,2]
[381609751,1756295516293,-1511.66,0.00024383,2]
[381609752,1756295516303,-1734.3,0.00024383,2]
[381609753,1756295516313,-3755.94,0.00024383,2]
[381609754,1756295516324,-831.34,0.00024383,2]
[381609755,1756295516333,-480.0,0.00024383,2]
[381609756,1756295516344,-480.0,0.00024383,2]
[381609757,1756295516356,-707.25,0.00024383,2]
[381609758,1756295516368,-2885.3,0.00024383,2]
[381609759,1756295516378,-480.0,0.00024383,2]
[381609760,1756295516388,-667.09,0.00024383,2]
[381609761,1756295516399,-480.0,0.00024383,2]
[381609762,1756295516408,-1275.32,0.00024383,2]
[381609763,1756295516418,-480.0,0.00024383,2]
[381609764,1756295516427,-562.26,0.00024383,2]
[381609765,1756295516438,-489.14,0.00024383,2]
[381609766,1756295516448,-3844.16,0.00024383,2]
[381609767,1756295516459,-480.0,0.00024383,2]
[381609768,1756295516468,-1682.7,0.00024383,2]
[381609769,1756295516478,-1992.53,0.00024383,2]
[381609770,1756295516487,-480.0,0.00024383,2]
[381609771,1756295516496,-514.63482437,0.00024383,2]
[381609772,1756295516505,-1281.38,0.00024383,2]
[381609773,1756295516514,-480.0,0.00024383,2]
[381609774,1756295516523,-480.0,0.00024383,2]
[381609775,1756295516533,-480.0,0.00024383,2]
[381609776,1756295516542,-833.25,0.00024383,2]
[381609777,1756295516552,-480.0,0.00024383,2]
[381609778,1756295516562,-480.0,0.00024383,2]
[381609779,1756295516571,-480.0,0.00024383,2]
[381609780,1756295516580,-480.0,0.00024383,2]
[381609781,1756295516590,-480.0,0.00024383,2]
[381609782,1756295516599,-480.0,0.00024383,2]
[381609783,1756295516608,-480.0,0.00024383,2]
[381609784,1756295516617,-480.0,0.00024383,2]
[381609785,1756295516626,-480.0,0.00024383,2]
[381609786,1756295516636,-480.0,0.00024383,2]
[381609787,1756295516647,-480.0,0.00024383,2]
[381609788,1756295516656,-824.64,0.00024383,2]
[381609789,1756295516667,-1267.55,0.00024383,2]
[381609790,1756295516676,-1138.38,0.00024383,2]
[381609791,1756295516686,-934.3,0.00024383,2]
[381609792,1756295516696,-480.0,0.00024383,2]
[381609793,1756295516705,-480.0,0.00024383,2]
[381609794,1756295516717,-495.31,0.00024383,2]
[381609795,1756295516731,-480.0,0.00024383,2]
[381609796,1756295516741,-776.73,0.00024383,2]
[381609797,1756295516751,-480.0,0.00024383,2]
[381609798,1756295516761,-480.0,0.00024383,2]
[381609799,1756295516770,-480.0,0.00024383,2]
[381609800,1756295516779,-480.0,0.00024383,2]
[381609801,1756295516789,-557.28,0.00024383,2]
[381609802,1756295516799,-535.56,0.00024383,2]
[381609803,1756295516808,-480.0,0.00024383,2]
[381609804,1756295516818,-200.04,0.00024383,2]
[381609805,1756295516828,-639.28,0.00024383,2]
[381609806,1756295516838,-480.0,0.00024383,2]
[381609807,1756295516849,-480.0,0.00024383,2]
[381609808,1756295516865,-480.0,0.00024383,2]
[381609809,1756295516874,-1717.2,0.00024383,2]
[381609810,1756295516888,-480.0,0.00024383,2]
[381609811,1756295516898,-480.0,0.00024383,2]
[381609812,1756295516907,-2626.17,0.00024383,2]
[381609813,1756295516917,-932.54,0.00024383,2]
[381609814,1756295516926,-484.63,0.00024383,2]
[381609815,1756295516937,-717.77,0.00024383,2]
[381609816,1756295516946,-1227.94,0.00024383,2]
[381609817,1756295516956,-607.71,0.00024383,2]
[381609818,1756295516966,-480.0,0.00024383,2]
[381609819,1756295516975,-5360.08,0.00024383,2]
[381609820,1756295516984,-636.41,0.00024383,2]
[381609821,1756295516993,-480.0,0.00024383,2]
[381609822,1756295517002,-7837.73,0.00024383,2]
[381609823,1756295517012,-525.03,0.00024383,2]
[381609824,1756295517022,-784.27,0.00024383,2]
[381609825,1756295517032,-974.32,0.00024383,2]
[381609826,1756295517041,-480.0,0.00024383,2]
[381609827,1756295517051,-480.0,0.00024383,2]
[381609828,1756295517062,-480.0,0.00024383,2]
[381609829,1756295517072,-2604.37,0.00024383,2]
[381609830,1756295517081,-480.0,0.00024383,2]
[381609831,1756295517091,-480.0,0.00024383,2]
[381609832,1756295517101,-480.0,0.00024383,2]
[381609833,1756295517111,-486.44,0.00024383,2]
[381609834,1756295517120,-480.0,0.00024383,2]
[381609835,1756295517130,-1424.05,0.00024383,2]
[381609836,1756295517140,-480.0,0.00024383,2]
[381609837,1756295517150,-480.0,0.00024383,2]
[381609838,1756295517160,-850.03,0.00024383,2]
[381609839,1756295517171,-480.0,0.00024383,2]
[381609840,1756295517180,-480.0,0.00024383,2]
[381609841,1756295517190,-480.0,0.00024383,2]
[381609842,1756295517200,-480.0,0.00024383,2]
[381609843,1756295517213,-512.47,0.00024383,2]
[381609844,1756295517223,-442.90100008,0.00024383,2]
[381609845,1756295517232,-1080.79,0.00024383,2]
[381609846,1756295517243,-2434.53,0.00024383,2]
[381609847,1756295517252,-753.46,0.00024383,2]
[381609848,1756295517262,-527.3,0.00024383,2]
[381609849,1756295517272,-480.0,0.00024383,2]
[381609850,1756295517281,-1150.08,0.00024383,2]
[381609851,1756295517291,-480.0,0.00024383,2]
[381609852,1756295517300,-480.0,0.00024383,2]
[381609853,1756295517310,-480.0,0.00024383,2]
[381609854,1756295517320,-716.6,0.00024383,2]
[381609855,1756295517330,-480.0,0.00024383,2]
[381609856,1756295517339,-480.0,0.00024383,2]
[381609857,1756295517349,-480.0,0.00024383,2]
[381609858,1756295517359,-480.0,0.00024383,2]
[381609859,1756295517369,-799.46,0.00024383,2]
[381609860,1756295517378,-528.16,0.00024383,2]
[381609861,1756295517388,-5059.84,0.00024383,2]
[381609862,1756295517398,-480.0,0.00024383,2]
[381609863,1756295517407,-518.25,0.00024383,2]
[381609864,1756295517417,-582.84,0.00024383,2]
[381609865,1756295517432,-556.45,0.00024383,2]
[381609866,1756295517442,-1272.66,0.00024383,2]
[381609867,1756295517452,-684.68,0.00024383,2]
[381609868,1756295517462,-480.0,0.00024383,2]
[381609869,1756295517472,-480.0,0.00024383,2]
[381609870,1756295517482,-587.0,0.00024478,2]
[381609871,1756295517491,-2351.0,0.00024479,2]
[381609872,1756295517501,-5888.0,0.00024538,2]
[381609873,1756295517511,-360.0,0.00024547,2]
[381609874,1756295517522,-720.0,0.0002459,20]
[381609875,1756295517532,-217.15233878,0.00024634,2]
[381609876,1756295517541,-973.0,0.00024636,2]
[381609877,1756295517551,-39073.57414438,0.0002465,2]
[381609878,1756295517561,-728.82,0.00024657,2]
[381609879,1756295517570,-1786.79,0.00024657,2]
[381609880,1756295517579,-225.78182359,0.00024657,2]
[381609881,1756295517588,-480.0,0.00024657,2]
[381609882,1756295517597,-567.43,0.00024657,2]
[381609883,1756295517607,-2132.63,0.00024657,2]
[381609884,1756295517616,-484.84883897,0.00024657,2]
[381609885,1756295517625,-224.79353517,0.00024657,2]
[381609886,1756295517634,-480.0,0.00024657,2]
[381609887,1756295517643,-480.0,0.00024657,2]
[381609888,1756295517653,-599.6,0.00024657,2]
[381609889,1756295517662,-480.0,0.00024657,2]
[381609890,1756295517671,-480.0,0.00024657,2]
[381609891,1756295517680,-555.01,0.00024657,2]
[381609892,1756295517689,-480.0,0.00024657,2]
[381609893,1756295517698,-480.0,0.00024657,2]
[381609894,1756295517708,-480.0,0.00024657,2]
[381609895,1756295517719,-608.26,0.00024657,2]
[381609896,1756295517728,-480.0,0.00024657,2]
[381609897,1756295517737,-788.63,0.00024657,2]
[381609898,1756295517746,-733.12,0.00024657,2]
[381609899,1756295517755,-491.85,0.00024657,2]
[381609900,1756295517767,-523.6,0.00024657,2]
[381609901,1756295517778,-4246.52,0.00024657,2]
[381609902,1756295517787,-598.52,0.00024657,2]
[381609903,1756295517796,-972.86,0.00024657,2]
[381609904,1756295517805,-568.62,0.00024657,2]
[381609905,1756295517814,-480.0,0.00024657,2]
[381609906,1756295517823,-480.0,0.00024657,2]
[381609907,1756295517833,-480.0,0.00024657,2]
[381609908,1756295517842,-573.08,0.00024657,2]
[381609909,1756295517853,-543.52,0.00024657,2]
[381609910,1756295517862,-506.41,0.00024657,2]
[381609911,1756295517871,-556.45,0.00024657,2]
[381609912,1756295517881,-480.0,0.00024657,2]
[381609913,1756295517890,-480.0,0.00024657,2]
[381609914,1756295517901,-480.0,0.00024657,2]
[381609915,1756295517911,-480.0,0.00024657,2]
[381609916,1756295517921,-480.0,0.00024657,2]
[381609917,1756295517933,-743.34,0.00024657,2]
[381609918,1756295517944,-614.77,0.00024657,2]
[381609919,1756295517953,-480.0,0.00024657,2]
[381609920,1756295517962,-480.0,0.00024657,2]
[381609921,1756295517972,-480.0,0.00024657,2]
[381609922,1756295517982,-1174.5,0.00024657,2]
[381609923,1756295517992,-480.0,0.00024657,2]
[381609924,1756295518007,-480.0,0.00024657,2]
[381609925,1756295518016,-480.0,0.00024657,2]
[381609926,1756295518025,-480.0,0.00024657,2]
[381609927,1756295518034,-480.0,0.00024657,2]
[381609928,1756295518052,-480.0,0.00024657,2]
[381609929,1756295518062,-824.65,0.00024657,2]
[381609930,1756295518071,-480.0,0.00024657,2]
[381609931,1756295518081,-897.27,0.00024657,2]
[381609932,1756295518091,-771.07,0.00024657,2]
[381609933,1756295518102,-480.0,0.00024657,2]
[381609934,1756295518111,-480.0,0.00024657,2]
[381609935,1756295518121,-504.69,0.00024657,2]
[381609936,1756295518131,-1094.25,0.00024657,2]
[381609937,1756295518140,-480.0,0.00024657,2]
[381609938,1756295518149,-482.59810578,0.00024657,2]
[381609939,1756295518159,-480.0,0.00024657,2]
[381609940,1756295518292,-480.0,0.00024657,2]
[381609941,1756295518302,-1176.51,0.00024657,2]
[381609942,1756295518311,-833.03,0.00024657,2]
[381609943,1756295518320,-480.0,0.00024657,2]
[381609944,1756295518329,-483.29,0.00024657,2]
[381609945,1756295518338,-480.0,0.00024657,2]
[381609946,1756295518347,-650.46,0.00024657,2]
[381609947,1756295518357,-536.02,0.00024657,2]
[381609948,1756295518366,-526.95889583,0.00024657,2]
[381609949,1756295518376,-2316.32,0.00024657,2]
[381609950,1756295518386,-480.0,0.00024657,2]
[381609951,1756295518395,-633.07,0.00024657,2]
[381609952,1756295518405,-480.0,0.00024657,2]
[381609953,1756295518414,-480.0,0.00024657,2]
[381609954,1756295518424,-480.0,0.00024657,2]
[381609955,1756295518433,-480.0,0.00024657,2]
[381609956,1756295518443,-692.43,0.00024657,2]
[381609957,1756295518453,-617.59,0.00024657,2]
[381609958,1756295518464,-480.0,0.00024657,2]
[381609959,1756295518473,-518.17,0.00024657,2]
[381609960,1756295518482,-604.0,0.00024657,2]
[381609961,1756295518492,-500.09,0.00024657,2]
[381609962,1756295518501,-480.0,0.00024657,2]
[381609963,1756295518510,-480.0,0.00024657,2]
[381609964,1756295518520,-480.0,0.00024657,2]
[381609965,1756295518530,-480.0,0.00024657,2]
[381609966,1756295518539,-402.25768488,0.00024657,2]
[381609967,1756295518549,-603.45,0.00024657,2]
[381609968,1756295518558,-480.0,0.00024657,2]
[381609969,1756295518568,-480.0,0.00024657,2]
[381609970,1756295518577,-525.14,0.00024657,2]
[381609971,1756295518586,-480.0,0.00024657,2]
[381609972,1756295518595,-546.45,0.00024657,2]
[381609973,1756295518605,-552.31746723,0.00024657,2]
[381609974,1756295518614,-480.0,0.00024657,2]
[381609975,1756295518623,-495.46,0.00024657,2]
[381609976,1756295518633,-494.23,0.00024657,2]
[381609977,1756295518643,-480.0,0.00024657,2]
[381609978,1756295518653,-752.07,0.00024657,2]
[381609979,1756295518663,-522.4,0.00024657,2]
[381609980,1756295518672,-480.0,0.00024657,2]
[381609981,1756295518682,-480.0,0.00024657,2]
[381609982,1756295518691,-1143.26,0.00024657,2]
[381609983,1756295518700,-698.99,0.00024657,2]
[381609984,1756295518709,-606.55,0.00024657,2]
[381609985,1756295518719,-755.57,0.00024657,2]
[381609986,1756295518728,-740.17,0.00024657,2]
[381609987,1756295518738,-480.0,0.00024657,2]
[381609988,1756295518747,-839.06,0.00024657,2]
[381609989,1756295518756,-558.04,0.00024657,2]
[381609990,1756295518765,-480.0,0.00024657,2]
[381609991,1756295518775,-480.0,0.00024657,2]
[381609992,1756295518784,-576.43,0.00024657,2]
[381609993,1756295518793,-480.0,0.00024657,2]
[381609994,1756295518802,-527.26,0.00024657,2]
[381609995,1756295518811,-564.31,0.00024657,2]
[381609996,1756295518821,-525.48,0.00024657,2]